bitfinex-derivatives/quotes_SOLF0:USTF0_20251119
["timestamp","ask_amount","ask_price","bid_price","bid_amount"]
[1763520186718,3.31316554,141.22,141.19,37.15255833]
[1763520187416,9.69066554,141.22,141.19,37.15255833]
[1763520187623,3.26,141.21,141.19,0.05255833]
[1763520188928,3.26,141.2,141.19,0.05255833]
[1763520190119,3.26,141.18,141.15,0.68]
[1763520191222,3.31135328,141.18,141.15,7.11079557]
[1763520191931,3.31135328,141.18,141.16,0.68]
[1763520193632,0.05135328,141.18,141.17,0.68]
[1763520194327,3.26,141.23,141.2,0.68]
[1763520195433,3.30587995,141.23,141.2,0.73224267]
[1763520195829,3.30587995,141.23,141.2,0.05224267]
[1763520196933,3.26,141.22,141.2,0.05224267]
[1763520199635,0.04587995,141.23,141.2,0.73224267]
[1763520199935,3.30587995,141.23,141.2,0.73224267]
[1763520200329,3.30587995,141.23,141.2,0.05224267]
[1763520202939,3.30587995,141.23,141.21,0.68]
[1763520202940,0.04587995,141.23,141.21,0.68]
[1763520203434,3.26,141.29,141.25,0.68]
[1763520203939,3.26,141.29,141.22,0.68]
[1763520204337,3.31077576,141.27,141.24,0.05067137]
[1763520205840,3.26,141.26,141.24,0.05067137]
[1763520207938,3.26,141.25,141.24,0.05067137]
[1763520208442,3.26,141.22,141.17,37.8]
[1763520208937,3.26,141.27,141.21,7.1078]
[1763520209234,3.26,141.24,141.23,0.04544201]
[1763520209439,3.26,141.22,141.19,6.3783]
[1763520210432,3.31399724,141.22,141.19,6.42288354]
[1763520211844,3.31399724,141.22,141.19,0.04458354]
[1763520212743,0.05399724,141.22,141.19,0.77458354]
[1763520213840,0.05399724,141.22,141.2,7.108]
[1763520218451,0.05399724,141.22,141.21,6.3779]
[1763520222649,3.29399724,141.22,141.19,43.54298354]
[1763520222948,3.29399724,141.22,141.19,0.04458354]
[1763520223951,3.24,141.2,141.19,0.04458354]
[1763520228553,9.6183,141.2,141.19,0.04458354]
[1763520231460,0.05399724,141.22,141.19,0.77458354]
[1763520231651,3.29399724,141.22,141.19,7.15338354]
[1763520233350,3.29399724,141.22,141.19,0.77458354]
[1763520236256,3.29399724,141.22,141.19,0.04458354]
[1763520236555,3.24,141.21,141.19,0.04458354]
[1763520237856,3.24,141.2,141.19,0.04458354]
[1763520239465,9.6183,141.2,141.19,0.04458354]
[1763520240059,3.24,141.2,141.19,0.04458354]
[1763520246064,3.21,141.21,141.19,0.77458354]
[1763520246264,3.26399724,141.22,141.19,0.77458354]
[1763520246562,3.26399724,141.22,141.19,0.04458354]
[1763520247960,3.21,141.2,141.19,0.04458354]
[1763520249662,3.21,141.2,141.19,6.42338354]
[1763520249867,3.26399724,141.22,141.19,7.15338354]
[1763520250067,3.26399724,141.22,141.19,6.42338354]
[1763520250265,3.26399724,141.22,141.19,7.15338354]
[1763520251576,3.26399724,141.22,141.21,7.1078]
[1763520251577,0.05399724,141.22,141.21,7.1078]
[1763520251771,3.26399724,141.22,141.19,0.04458354]
[1763520252180,3.26399724,141.22,141.19,0.77458354]
[1763520253269,3.26399724,141.22,141.19,7.15338354]
[1763520253986,3.26399724,141.22,141.2,0.73]
[1763520254374,3.26399724,141.22,141.19,6.42338354]
[1763520254678,3.26399724,141.22,141.19,7.15338354]
[1763520255370,3.26399724,141.22,141.19,0.04458354]
[1763520256975,0.05399724,141.22,141.21,7.1078]
[1763520257179,3.21,141.26,141.22,0.73]
[1763520257878,3.21,141.26,141.23,7.1068]
[1763520258079,3.25511947,141.26,141.23,7.16113933]
[1763520258275,3.25511947,141.26,141.24,0.73]
[1763520258470,3.25511947,141.26,141.23,7.16113933]
[1763520258876,3.25511947,141.26,141.23,0.78433933]
[1763520260183,3.25511947,141.26,141.23,0.05433933]
[1763520260373,6.3763,141.25,141.23,0.05433933]
[1763520260574,3.21,141.24,141.23,0.05433933]
[1763520264783,3.21,141.24,141.23,0.00433933]
[1763520267186,9.5865,141.24,141.23,0.00433933]
[1763520267787,3.21,141.24,141.23,0.00433933]
[1763520268990,9.5865,141.24,141.23,0.00433933]
[1763520270291,14.94534205,141.24,141.23,0.00433933]
[1763520280192,8.56884205,141.24,141.23,0.00433933]
[1763520280796,14.94534205,141.24,141.23,0.00433933]
[1763520286000,8.56884205,141.24,141.23,0.00433933]
[1763520287499,14.94534205,141.24,141.23,0.00433933]
[1763520298804,8.56884205,141.24,141.23,0.00433933]
[1763520299008,3.23,141.25,141.23,0.00433933]
[1763520299508,3.23,141.24,141.23,0.00433933]
[1763520301804,5.37539361,141.24,141.23,0.00433933]
[1763520303104,0.04511947,141.26,141.23,0.00433933]
[1763520303504,3.32511947,141.26,141.23,0.00433933]
[1763520303697,3.28,141.24,141.23,0.00433933]
[1763520305102,5.37722625,141.24,141.23,0.00433933]
[1763520307411,43.87722625,141.24,141.23,0.00433933]
[1763520307706,50.44161802,141.24,141.23,0.00433933]
[1763520309410,143.07282625,141.24,141.16,0.78]
[1763520309716,14.94906942,141.23,141.16,0.78]
[1763520309915,3.28,141.21,141.16,0.78]
[1763520310209,3.28,141.19,141.16,0.78]
[1763520310600,3.32904961,141.19,141.16,0.8284891]
[1763520312215,3.32904961,141.19,141.16,7.2085891]
[1763520315213,3.32904961,141.19,141.17,0.78]
[1763520317406,0.04904961,141.19,141.18,0.78]
[1763520320508,3.11904961,141.19,141.16,0.8284891]
[1763520320908,0.04904961,141.19,141.16,0.8284891]
[1763520321919,0.04904961,141.19,141.17,0.78]
[1763520323114,0.04904961,141.19,141.17,7.1596]
[1763520324317,0.04904961,141.19,141.18,0.78]
[1763520328120,3.07,141.22,141.19,0.78]
[1763520329122,3.12093297,141.22,141.19,0.83154539]
[1763520331933,3.12093297,141.22,141.2,0.78]
[1763520332630,3.12093297,141.22,141.19,0.83154539]
[1763520334530,3.12093297,141.22,141.19,7.21024539]
[1763520336829,3.12093297,141.22,141.2,0.79]
[1763520337728,0.05093297,141.22,141.21,0.79]
[1763520338030,3.15,141.29,141.22,0.79]
[1763520338335,3.15,141.29,141.26,7.1656]
[1763520339035,3.20303663,141.29,141.27,0.79]
[1763520339435,0.05303663,141.29,141.28,0.79]
[1763520343034,3.20303663,141.29,141.26,0.83531105]
[1763520343335,3.20303663,141.29,141.26,0.04531105]
[1763520343336,5.0346148,141.27,141.26,0.04531105]
[1763520343528,5.0346148,141.27,141.2,37.87]
[1763520343529,3.15,141.26,141.2,37.87]
[1763520344327,3.15,141.26,141.2,0.79]
[1763520344528,3.20149882,141.24,141.22,0.04752684]
[1763520344936,0.05149882,141.24,141.22,7.21482684]
[1763520345127,0.05149882,141.24,141.23,0.79]
[1763520345328,3.15,141.28,141.23,0.79]
[1763520345741,3.15,141.28,141.26,0.79]
[1763520346539,3.19498408,141.28,141.26,0.84354916]
[1763520346745,0.04498408,141.28,141.26,7.21894916]
[1763520348837,0.04498408,141.28,141.27,0.79]
[1763520354735,3.15,141.34,141.3,0.79]
[1763520355337,3.15,141.34,141.31,7.1632]
[1763520355841,3.1964132,141.34,141.31,7.20975872]
[1763520356741,3.1964132,141.34,141.32,0.79]
[1763520357647,3.1964132,141.34,141.31,6.41975872]
[1763520357850,3.1964132,141.34,141.31,7.20975872]
[1763520358341,3.1964132,141.34,141.32,0.79]
[1763520362246,0.0464132,141.34,141.33,0.79]
[1763520363645,3.2064132,141.34,141.31,37.88655872]
[1763520364846,3.2064132,141.34,141.32,0.78]
[1763520365155,0.0464132,141.34,141.32,0.78]
[1763520365351,0.0464132,141.34,141.32,7.1529]
[1763520366055,3.16,141.39,141.35,0.78]
[1763520367047,3.21337959,141.38,141.36,0.05069429]
[1763520367549,3.21337959,141.38,141.36,0.83069429]
[1763520367850,0.05337959,141.38,141.36,0.83069429]
[1763520368055,0.05337959,141.38,141.37,0.78]
[1763520370253,3.16,141.41,141.38,0.78]
[1763520370439,3.16,141.42,141.38,0.78]
[1763520371344,0.05315303,141.41,141.39,0.82526804]
[1763520371952,0.05315303,141.41,141.39,7.19496804]
[1763520372256,0.05315303,141.41,141.4,0.78]
[1763520373854,3.16,141.45,141.42,0.78]
[1763520374151,1.8846148,141.48,141.42,0.78]
[1763520374453,3.16,141.47,141.42,0.78]
[1763520374845,3.20863881,141.46,141.43,0.82649114]
[1763520375348,3.20863881,141.46,141.43,0.04649114]
[1763520379655,3.16,141.45,141.35,0.83]
[1763520379957,3.16,141.45,141.37,0.83]
[1763520380661,3.16,141.41,141.37,0.83]
[1763520380862,3.16,141.41,141.4,0.04901045]
[1763520383763,2.97,141.37,141.33,0.83]
[1763520384067,2.97,141.36,141.3,0.83]
[1763520384864,3.02033684,141.34,141.32,0.05232209]
[1763520386965,0.05033684,141.34,141.32,0.88232209]
[1763520387149,0.05033684,141.34,141.33,0.83]
[1763520388462,0.05033684,141.34,141.32,0.88232209]
[1763520389458,0.05033684,141.34,141.33,0.83]
[1763520392261,3.02033684,141.34,141.32,0.05232209]
[1763520392456,3.02033684,141.34,141.27,0.83]
[1763520392971,2.97,141.31,141.24,37.87]
[1763520393564,3.07,141.28,141.26,0.05001403]
[1763520396264,0.04469459,141.29,141.26,0.88001403]
[1763520396968,0.04469459,141.29,141.26,6.42541403]
[1763520397172,0.04469459,141.29,141.27,0.83]
[1763520397672,0.04469459,141.29,141.28,0.83]
[1763520398571,9.4424,141.34,141.28,0.83]
[1763520399572,9.4424,141.34,141.3,0.0470678]
[1763520399573,0.04593054,141.32,141.3,0.0470678]
[1763520400572,3.11593054,141.32,141.3,0.0470678]
[1763520403765,0.04593054,141.32,141.3,0.8770678]
[1763520404778,0.04593054,141.32,141.3,7.2507678]
[1763520405474,9.4415,141.36,141.32,0.83]
[1763520405680,3.07,141.36,141.32,0.83]
[1763520405894,3.07,141.42,141.32,0.83]
[1763520406174,3.07,141.41,141.32,0.83]
[1763520406563,3.11724445,141.38,141.35,0.0478134]
[1763520410169,0.04724445,141.38,141.35,0.8778134]
[1763520411271,0.04724445,141.38,141.37,0.83]
[1763520413465,3.07,141.44,141.39,0.83]
[1763520413867,3.07,141.43,141.39,0.83]
[1763520414172,3.07,141.43,141.4,0.83]
[1763520414476,0.04460883,141.43,141.42,0.83]
[1763520417980,3.11460883,141.43,141.4,0.87604354]
[1763520418166,3.11460883,141.43,141.4,0.04604354]
[1763520418368,3.11460883,141.43,141.4,37.89604354]
[1763520419376,3.11460883,141.43,141.41,0.83]
[1763520419377,0.04460883,141.43,141.41,0.83]
[1763520420873,3.11460883,141.43,141.4,37.89604354]
[1763520422382,3.11460883,141.43,141.41,0.83]
[1763520422681,0.04460883,141.43,141.41,0.83]
[1763520422884,101.9571154,141.49,141.41,0.83]
[1763520422885,3.07,141.49,141.41,0.83]
[1763520423975,0.05022862,141.46,141.44,0.87161485]
[1763520424181,0.04949494,141.46,141.44,0.86933029]
[1763520425686,0.04949494,141.46,141.45,37.84]
[1763520428395,3.1,141.51,141.47,0.82]
[1763520428888,101.9014154,141.57,141.49,0.82]
[1763520428889,3.1,141.52,141.49,0.82]
[1763520429389,3.148323,141.52,141.49,0.86737041]
[1763520431189,0.048323,141.52,141.51,0.82]
[1763520431394,138.8989154,141.6,141.51,0.82]
[1763520431395,3.1,141.58,141.51,0.82]
[1763520431687,3.1,141.62,141.53,0.82]
[1763520431891,3.1,141.62,141.54,0.82]
[1763520432092,3.1,141.62,141.58,0.82]
[1763520432396,0.04658483,141.61,141.59,0.05436608]
[1763520432588,0.04658483,141.61,141.59,0.87436608]
[1763520432789,3.14658483,141.61,141.59,0.05436608]
[1763520433190,9.50658483,141.61,141.59,0.05436608]
[1763520433396,3.1,141.6,141.59,0.05436608]
[1763520434087,3.1,141.59,141.55,37.0]
[1763520434293,3.1,141.59,141.53,0.82]
[1763520434294,3.1,141.59,141.54,37.82]
[1763520434494,3.1,141.59,141.51,0.82]
[1763520434798,3.1,141.59,141.52,37.0]
[1763520435188,3.1,141.56,141.54,0.05319778]
[1763520436694,3.14587827,141.57,141.54,0.87319778]
[1763520437100,3.14587827,141.57,141.54,0.05319778]
[1763520438307,3.1,141.55,141.54,0.05319778]
[1763520440609,3.1,141.55,141.47,0.82]
[1763520440801,3.1,141.55,141.48,37.0]
[1763520441402,3.1,141.55,141.48,37.82]
[1763520441604,3.14792339,141.53,141.5,0.05103726]
[1763520441906,9.51142339,141.53,141.5,0.05103726]
[1763520442100,3.1,141.52,141.5,0.05103726]
[1763520444008,3.1,141.51,141.5,0.05103726]
[1763520444610,9.4653,141.49,141.43,37.8]
[1763520444810,3.1,141.48,141.43,0.82]
[1763520445002,6.3662,141.47,141.41,44.1687]
[1763520445203,9.4662,141.47,141.42,0.82]
[1763520445598,0.05441902,141.46,141.43,0.87054488]
[1763520446310,3.15441902,141.46,141.43,0.87054488]
[1763520449811,0.05441902,141.46,141.44,0.82]
[1763520450011,3.1,141.51,141.44,0.82]
[1763520450518,3.1,141.51,141.46,6.3665]
[1763520450715,3.1,141.51,141.46,7.1865]
[1763520451122,3.1,141.49,141.47,0.04804405]
[1763520451323,0.04686165,141.5,141.48,0.82]
[1763520452610,3.14686165,141.5,141.47,7.23394405]
[1763520455619,3.14686165,141.5,141.48,0.82]
[1763520455822,0.04686165,141.5,141.48,0.82]
[1763520456123,0.04686165,141.5,141.47,6.41394405]
[1763520456124,2.95,141.49,141.47,0.04804405]
[1763520456325,2.99686165,141.5,141.47,0.86804405]
[1763520457024,2.99686165,141.5,141.47,7.23414405]
[1763520459927,2.99686165,141.5,141.47,0.04804405]
[1763520460928,2.95,141.48,141.47,0.04804405]
[1763520467726,9.3157,141.48,141.47,0.04804405]
[1763520470432,2.95,141.48,141.47,0.04804405]
[1763520470634,2.99686165,141.5,141.47,0.86804405]
[1763520473927,2.99686165,141.5,141.47,7.23404405]
[1763520480935,2.99686165,141.5,141.49,0.82]
[1763520480936,0.04686165,141.5,141.49,0.82]
[1763520481137,2.99686165,141.5,141.48,7.1856]
[1763520481434,8.30360595,141.54,141.5,0.82]
[1763520481637,2.95,141.56,141.52,0.82]
[1763520481821,2.95,141.56,141.53,0.82]
[1763520482025,2.95,141.56,141.53,7.1832]
[1763520482235,2.95,141.56,141.53,0.82]
[1763520482435,3.00151495,141.56,141.53,0.86962217]
[1763520482729,3.00151495,141.56,141.53,7.23282217]
[1763520482932,3.00151495,141.56,141.53,0.86962217]
[1763520483134,3.00151495,141.56,141.53,7.23302217]
[1763520483534,3.12151495,141.56,141.53,7.23302217]
[1763520484335,0.05151495,141.56,141.54,7.1829]
[1763520484638,3.12151495,141.56,141.54,7.1829]
[1763520485528,3.12151495,141.56,141.54,0.82]
[1763520486933,3.12151495,141.56,141.53,0.86962217]
[1763520488132,3.12151495,141.56,141.53,7.23292217]
[1763520488436,3.12151495,141.56,141.53,6.41292217]
[1763520489026,3.12151495,141.56,141.53,7.23292217]
[1763520489234,3.12151495,141.56,141.54,7.1829]
[1763520490133,3.12151495,141.56,141.53,0.04962217]
[1763520490937,3.07,141.54,141.53,0.04962217]
[1763520491931,0.05151495,141.56,141.53,0.04962217]
[1763520492229,3.07,141.55,141.53,0.04962217]
[1763520494740,3.07,141.55,141.53,7.23282217]
[1763520494935,0.05151495,141.56,141.53,7.23282217]
[1763520495441,3.12151495,141.56,141.53,7.23282217]
[1763520495633,3.12151495,141.56,141.54,6.3629]
[1763520498043,3.12151495,141.56,141.54,7.1829]
[1763520498844,3.12151495,141.56,141.54,9.06027108]
[1763520501032,0.05151495,141.56,141.55,7.1825]
[1763520501244,3.07,141.59,141.56,0.82]
[1763520501547,3.07,141.59,141.58,1.87737108]
[1763520501844,3.07,141.63,141.58,9.05857108]
[1763520502251,3.05,141.61,141.59,0.05205594]
[1763520503949,3.05,141.61,141.59,1.92942702]
[1763520508354,3.05,141.61,141.59,2.74942702]
[1763520508846,3.05,141.61,141.59,0.87205594]
[1763520509045,3.05,141.61,141.59,7.23275594]
[1763520509453,3.05,141.61,141.59,6.41275594]
[1763520510054,3.05,141.61,141.59,7.23275594]
[1763520510255,0.04762729,141.62,141.6,10.10695023]
[1763520510757,3.09762729,141.62,141.6,2.92675023]
[1763520511144,3.09762729,141.62,141.6,3.74675023]
[1763520511453,0.04762729,141.62,141.6,10.10655023]
[1763520511852,3.09762729,141.62,141.6,2.92675023]
[1763520512153,3.09762729,141.62,141.59,0.05205594]
[1763520512856,3.05,141.6,141.59,0.05205594]
[1763520518151,3.12762729,141.62,141.59,0.87205594]
[1763520518351,3.12762729,141.62,141.6,2.92675023]
[1763520518752,3.12762729,141.62,141.6,10.10695023]
[1763520519752,3.12762729,141.62,141.6,3.74675023]
[1763520520060,6.3582,141.65,141.6,3.74675023]
[1763520520453,6.3582,141.65,141.6,10.10705023]
[1763520520657,6.3582,141.65,141.61,3.2]
[1763520521167,0.04543006,141.64,141.61,3.2]
[1763520521454,105.43136264,141.71,141.63,6.12675023]
[1763520521857,111.5665,141.72,141.64,3.2]
[1763520521858,105.42126264,141.72,141.64,3.2]
[1763520522061,3.08,141.67,141.63,2.92675023]
[1763520522451,3.08,141.65,141.64,0.04701009]
[1763520522651,105.41486264,141.73,141.64,6.17376032]
[1763520522854,5.33985837,141.72,141.64,6.12675023]
[1763520523050,36.96,141.74,141.64,6.12675023]
[1763520523051,5.33985837,141.71,141.67,2.92675023]
[1763520523261,43.52476264,141.74,141.67,2.92675023]
[1763520523262,5.33985837,141.7,141.67,2.92675023]
[1763520523467,5.33985837,141.71,141.67,6.12675023]
[1763520523657,0.03746909,141.7,141.68,0.04915205]
[1763520524650,3.11746909,141.7,141.68,0.04915205]
[1763520532268,3.11746909,141.7,141.68,3.24915205]
[1763520532668,3.11746909,141.7,141.68,0.04915205]
[1763520534570,0.03746909,141.7,141.68,3.24915205]
[1763520534770,3.08,141.72,141.68,3.24915205]
[1763520534971,3.08,141.72,141.71,2.92675023]
[1763520539876,3.08,141.71,141.7,0.05428803]
[1763520542077,3.08,141.69,141.65,2.92675023]
[1763520542274,3.08,141.69,141.6,3.2]
[1763520542468,3.08,141.69,141.64,2.92675023]
[1763520542667,3.08,141.67,141.64,2.92675023]
[1763520543078,0.04902939,141.67,141.65,3.2]
[1763520543272,3.08,141.69,141.65,3.2]
[1763520543478,3.08,141.69,141.68,2.92675023]
[1763520543681,39.93,141.71,141.68,2.92675023]
[1763520543976,2.99,141.71,141.68,5.95675023]
[1763520544176,2.99,141.71,141.68,6.00471612]
[1763520544576,2.99,141.71,141.68,2.97471612]
[1763520545080,2.99,141.7,141.68,2.97471612]
[1763520549184,9.3458,141.7,141.68,2.97471612]
[1763520549681,2.99,141.69,141.68,2.97471612]
[1763520549982,6.3549,141.72,141.68,2.97471612]
[1763520550482,5.3341642,141.73,141.68,12.36141612]
[1763520550678,5.3341642,141.74,141.68,12.36141612]
[1763520550885,5.3341642,141.74,141.71,2.92675023]
[1763520551178,5.3341642,141.74,141.71,2.97535107]
[1763520551383,36.94,141.75,141.71,2.97535107]
[1763520551881,2.99,141.74,141.71,2.97535107]
[1763520552976,2.99,141.73,141.71,2.97535107]
[1763520553482,2.99,141.72,141.71,2.97535107]
[1763520556287,43.294,141.75,141.71,2.97535107]
[1763520556487,36.94,141.75,141.71,2.97535107]
[1763520557903,6.3541,141.74,141.71,2.97535107]
[1763520558393,0.11,141.73,141.71,2.97535107]
[1763520559783,6.4644,141.73,141.71,2.97535107]
[1763520560494,0.11,141.72,141.71,2.97535107]
[1763520562598,6.4944,141.73,141.71,2.97535107]
[1763520562797,0.14,141.72,141.71,2.97535107]
[1763520564097,6.4944,141.73,141.71,2.97535107]
[1763520564499,43.2939,141.75,141.72,3.01]
[1763520564697,36.94,141.75,141.74,2.92675023]
[1763520564902,5.35383282,141.75,141.74,2.92675023]
[1763520565696,11.84743282,141.75,141.74,2.92675023]
[1763520566605,6.55025229,141.78,141.75,3.01]
[1763520566800,6.55025229,141.79,141.77,2.92675023]
[1763520567597,8.85599154,141.81,141.78,3.01]
[1763520567890,8.85599154,141.81,141.78,3.05914997]
[1763520568102,8.85599154,141.81,141.8,2.92675023]
[1763520568910,15.20729154,141.81,141.8,2.92675023]
[1763520569301,15.20729154,141.81,141.78,3.05914997]
[1763520569603,6.3514,141.8,141.78,3.05914997]
[1763520569806,6.4914,141.8,141.78,0.04914997]
[1763520570805,6.4914,141.8,141.79,2.10119328]
[1763520571101,6.4914,141.8,141.78,0.04914997]
[1763520572503,0.14,141.8,141.78,3.05914997]
[1763520573507,6.4914,141.8,141.78,0.04914997]
[1763520576004,0.13,141.79,141.78,0.04914997]
[1763520576908,8.45259328,141.8,141.73,3.09]
[1763520576909,0.13,141.77,141.73,3.09]
[1763520577902,0.04617033,141.76,141.74,3.14347759]
[1763520581913,0.04617033,141.76,141.74,9.49747759]
[1763520582115,0.04617033,141.76,141.75,3.09]
[1763520585310,8.58249328,141.81,141.75,6.3536]
[1763520585614,2.23119328,141.81,141.76,3.09]
[1763520586114,2.23119328,141.81,141.76,9.4431]
[1763520586115,8.58209328,141.81,141.76,9.4431]
[1763520586313,2.23119328,141.81,141.77,3.14023953]
[1763520587908,8.58209328,141.81,141.77,3.14023953]
[1763520590703,6.3509,141.81,141.77,3.14023953]
[1763520591110,2.23119328,141.83,141.78,3.09]
[1763520591319,0.13,141.83,141.78,3.09]
[1763520592815,0.13,141.83,141.77,0.05023953]
[1763520592816,0.13,141.83,141.8,3.09]
[1763520593018,0.13,141.83,141.8,3.14103174]
[1763520593818,0.13,141.84,141.8,3.14103174]
[1763520594019,0.13,141.84,141.81,3.09]
[1763520594213,0.13,141.85,141.81,3.09]
[1763520595018,6.4791,141.85,141.81,3.09]
[1763520596525,8.44979328,141.87,141.82,3.09]
[1763520596827,6.3486,141.87,141.84,3.09]
[1763520598128,6.4786,141.87,141.84,3.09]
[1763520598332,0.13,141.87,141.84,3.09]
[1763520599928,6.4782,141.87,141.84,3.09]
[1763520600427,0.13,141.9,141.86,3.09]
[1763520600631,0.13,141.9,141.81,100.88849328]
[1763520600632,0.13,141.89,141.87,0.04703466]
[1763520600829,0.13,141.89,141.87,0.04646432]
[1763520601027,0.13,141.89,141.87,3.13646432]
[1763520601228,36.9,141.92,141.87,3.13646432]
[1763520601229,37.03,141.92,141.87,3.13646432]
[1763520601426,0.13,141.92,141.87,3.13646432]
[1763520601625,2.10119328,141.93,141.89,3.09]
[1763520601935,0.13,141.93,141.89,3.09]
[1763520602230,8.37523734,141.94,141.89,3.09]
[1763520602231,1.8165277,141.94,141.91,3.09]
[1763520602418,1.8165277,141.94,141.92,3.09]
[1763520602824,1.8165277,141.94,141.93,3.09]
[1763520603429,0.13,142.05,141.96,3.05]
[1763520603627,5.24384476,142.05,141.99,3.09858601]
[1763520603930,2.23119328,142.01,141.99,0.04858601]
[1763520604323,6.343,141.99,141.96,3.05]
[1763520604521,8.57419328,141.99,141.96,3.05]
[1763520604925,0.13,141.99,141.96,3.05]
[1763520605128,2.10119328,141.97,141.9,3.05]
[1763520605339,0.05037502,141.95,141.92,3.09946998]
[1763520605524,0.18037502,141.95,141.92,3.09946998]
[1763520605833,2.23119328,141.93,141.85,3.05]
[1763520606038,2.10119328,141.91,141.85,3.05]
[1763520606240,2.23119328,141.91,141.85,3.05]
[1763520606628,2.23119328,141.91,141.87,0.05164048]
[1763520606935,0.052869,141.89,141.87,0.05164048]
[1763520607136,0.182869,141.89,141.87,0.05164048]
[1763520608925,0.052869,141.89,141.87,0.05164048]
[1763520609630,0.182869,141.89,141.87,0.05164048]
[1763520609831,98.6717,141.99,141.89,3.05]
[1763520609832,98.6771,141.98,141.89,3.05]
[1763520610032,5.23228946,141.97,141.89,3.05]
[1763520610741,0.05216707,141.94,141.92,0.05072975]
[1763520611933,7.79756707,141.94,141.92,0.05072975]
[1763520612332,6.39756707,141.94,141.92,0.05072975]
[1763520612531,0.05216707,141.94,141.92,3.10072975]
[1763520613534,0.05216707,141.94,141.92,0.05072975]
[1763520614138,0.05216707,141.94,141.92,3.10072975]
[1763520615626,0.05216707,141.94,141.92,0.05072975]
[1763520616551,0.05216707,141.94,141.92,3.10072975]
[1763520617740,0.05216707,141.94,141.92,9.44652975]
[1763520617944,0.05216707,141.94,141.93,3.05]
[1763520622547,0.05216707,141.94,141.92,0.05072975]
[1763520623143,98.7238,141.91,141.84,3.16]
[1763520623337,135.7238,141.91,141.79,37.02]
[1763520623538,135.7238,141.91,141.81,3.16]
[1763520623539,104.34799826,141.9,141.81,3.16]
[1763520623738,5.61869826,141.89,141.81,3.16]
[1763520623934,5.61869826,141.88,141.81,3.16]
[1763520624156,5.61869826,141.88,141.79,37.02]
[1763520624157,0.04470633,141.86,141.83,3.21364466]
[1763520625553,0.04470633,141.86,141.84,3.16]
[1763520627748,5.82115749,141.85,141.84,3.16]
[1763520632648,5.82115749,141.85,141.81,3.16]
[1763520632843,5.82115749,141.84,141.81,3.16]
[1763520633146,6.57036102,141.86,141.81,3.16]
[1763520633147,5.82115749,141.83,141.81,3.16]
[1763520633352,0.04470633,141.86,141.81,3.16]
[1763520633545,5.81534215,141.85,141.81,3.16]
[1763520633757,5.81534215,141.84,141.82,0.04651284]
[1763520634051,5.81534215,141.83,141.82,0.04651284]
[1763520635744,5.81534215,141.83,141.82,3.12651284]
[1763520635950,0.04470633,141.86,141.82,3.12651284]
[1763520636140,0.04470633,141.86,141.85,3.08]
[1763520636342,5.84535119,141.86,141.85,3.08]
[1763520636542,0.04470633,141.86,141.85,3.08]
[1763520638444,5.61189029,141.91,141.85,3.08]
[1763520638749,43.54565469,141.96,141.87,3.08]
[1763520638955,6.3451,141.94,141.87,3.08]
[1763520639145,5.61142749,141.93,141.87,3.08]
[1763520639346,6.52565469,141.95,141.88,9.4276]
[1763520639545,0.04481391,141.93,141.9,0.04651437]
[1763520639745,5.61271021,141.92,141.9,0.04651437]
[1763520639950,0.04481391,141.93,141.9,3.12651437]
[1763520641254,0.04481391,141.93,141.9,9.47331437]
[1763520642254,0.04481391,141.93,141.9,3.12651437]
[1763520642854,11.95957672,141.92,141.9,0.04651437]
[1763520643154,5.61337672,141.91,141.9,0.04651437]
[1763520645262,5.61337672,141.91,141.9,3.12651437]
[1763520645450,0.04481391,141.93,141.9,3.12651437]
[1763520645759,0.04481391,141.93,141.9,9.47331437]
[1763520646152,0.04481391,141.93,141.91,3.08]
[1763520647059,0.04481391,141.93,141.9,0.04651437]
[1763520647755,5.56930757,141.92,141.9,0.04651437]
[1763520647954,0.04481391,141.93,141.9,0.04651437]
[1763520648454,5.5707382,141.92,141.9,0.04651437]